bitfinex-derivatives/quotes_BTCF0:USTF0_20251225
["timestamp","ask_amount","ask_price","bid_price","bid_amount"]
[1766673951866,0.02591864,87686.0,87674.0,0.0114126]
[1766673952063,0.0114106,87691.0,87674.0,0.0114126]
[1766673952254,0.02591679,87690.0,87676.0,0.0114124]
[1766673952452,0.02591679,87689.0,87676.0,0.0114124]
[1766673952652,0.02591679,87688.0,87676.0,0.0114124]
[1766673952951,0.02591679,87687.0,87676.0,0.0114124]
[1766673953251,0.02591679,87686.0,87676.0,0.0114124]
[1766673953447,0.0114106,87691.0,87676.0,0.0114124]
[1766673953751,0.02591617,87690.0,87676.0,0.0114124]
[1766673953946,0.02591617,87689.0,87676.0,0.0114124]
[1766673954160,0.02591617,87688.0,87676.0,0.0114124]
[1766673954361,0.02591617,87687.0,87676.0,0.0114124]
[1766673954560,0.02591617,87686.0,87676.0,0.0114124]
[1766673954763,0.0114106,87691.0,87676.0,0.0114124]
[1766673955066,0.02591634,87690.0,87676.0,0.0114124]
[1766673955257,0.02591634,87689.0,87676.0,0.0114124]
[1766673955555,0.02591634,87688.0,87676.0,0.0114124]
[1766673955752,0.02591634,87687.0,87676.0,0.0114124]
[1766673955953,0.02591634,87686.0,87676.0,0.0114124]
[1766673956157,0.02591634,87685.0,87676.0,0.0114124]
[1766673956359,0.0114106,87691.0,87676.0,0.0114124]
[1766673956557,0.02591664,87690.0,87676.0,0.0114124]
[1766673956759,0.02591664,87689.0,87676.0,0.0114124]
[1766673956959,0.02591664,87688.0,87676.0,0.0114124]
[1766673957163,0.02591664,87687.0,87676.0,0.0114124]
[1766673957364,0.02591664,87686.0,87676.0,0.0114124]
[1766673957568,0.02591664,87685.0,87676.0,0.0114124]
[1766673957755,0.0114106,87691.0,87676.0,0.0114124]
[1766673958051,0.02591667,87690.0,87676.0,0.0114124]
[1766673958254,0.02591667,87689.0,87676.0,0.0114124]
[1766673958464,0.02591667,87688.0,87676.0,0.0114124]
[1766673958660,0.02591667,87687.0,87676.0,0.0114124]
[1766673958860,0.02591667,87686.0,87676.0,0.0114124]
[1766673959061,0.02591667,87685.0,87676.0,0.0114124]
[1766673959262,0.0114106,87691.0,87676.0,0.0114124]
[1766673959462,0.02591521,87690.0,87676.0,0.0114124]
[1766673959668,0.02591521,87689.0,87676.0,0.0114124]
[1766673959865,0.02591521,87688.0,87676.0,0.0114124]
[1766673960067,0.02591521,87687.0,87676.0,0.0114124]
[1766673960366,0.02591521,87686.0,87676.0,0.0114124]
[1766673960566,0.02591521,87685.0,87676.0,0.0114124]
[1766673960873,0.0114106,87691.0,87676.0,0.0114124]
[1766673961060,0.02591518,87690.0,87676.0,0.0114124]
[1766673961359,0.02591518,87689.0,87676.0,0.0114124]
[1766673961554,0.02591518,87688.0,87676.0,0.0114124]
[1766673961758,0.02591518,87687.0,87676.0,0.0114124]
[1766673961958,0.02591518,87686.0,87676.0,0.0114124]
[1766673962258,0.0114106,87691.0,87676.0,0.0114124]
[1766673962259,0.02591518,87685.0,87676.0,0.0114124]
[1766673962459,0.0114106,87691.0,87676.0,0.0114124]
[1766673962670,0.02591525,87690.0,87676.0,0.0114124]
[1766673962858,0.02591525,87689.0,87676.0,0.0114124]
[1766673963060,0.02591525,87688.0,87676.0,0.0114124]
[1766673963366,0.02591525,87687.0,87676.0,0.0114124]
[1766673963669,0.02591525,87686.0,87676.0,0.0114124]
[1766673963867,0.02591525,87685.0,87676.0,0.0114124]
[1766673964067,0.0114107,87689.0,87676.0,0.0114124]
[1766673964268,0.02591529,87688.0,87676.0,0.0114124]
[1766673964463,0.02591529,87687.0,87676.0,0.0114124]
[1766673964664,0.02591529,87686.0,87676.0,0.0114124]
[1766673964967,0.0114107,87689.0,87676.0,0.0114124]
[1766673965163,0.02591503,87688.0,87676.0,0.0114124]
[1766673965364,0.02591503,87687.0,87676.0,0.0114124]
[1766673965567,0.02591503,87686.0,87676.0,0.0114124]
[1766673965868,0.0114107,87689.0,87676.0,0.0114124]
[1766673966054,0.02591512,87688.0,87676.0,0.0114124]
[1766673966257,0.02591512,87687.0,87676.0,0.0114124]
[1766673966454,0.0114107,87689.0,87676.0,0.0114124]
[1766673966455,0.02591512,87686.0,87676.0,0.0114124]
[1766673966655,0.0114107,87689.0,87676.0,0.0114124]
[1766673966858,0.02591515,87688.0,87676.0,0.0114124]
[1766673967064,0.02591515,87687.0,87676.0,0.0114124]
[1766673967269,0.02591515,87686.0,87676.0,0.0114124]
[1766673967567,0.0114107,87689.0,87676.0,0.0114124]
[1766673967769,0.02591527,87688.0,87676.0,0.0114124]
[1766673967970,0.02591527,87687.0,87676.0,0.0114124]
[1766673968167,0.02591527,87686.0,87676.0,0.0114124]
[1766673968369,0.0114107,87689.0,87676.0,0.0114124]
[1766673968666,0.02591541,87688.0,87676.0,0.0114124]
[1766673968856,0.02591541,87687.0,87676.0,0.0114124]
[1766673969059,0.02591541,87686.0,87676.0,0.0114124]
[1766673969255,0.0114104,87692.0,87676.0,0.0114124]
[1766673969461,0.02591552,87691.0,87678.0,0.0114121]
[1766673969661,0.02591552,87690.0,87679.0,0.0114119]
[1766673969862,0.02591552,87689.0,87679.0,0.0114119]
[1766673970063,0.02591552,87688.0,87679.0,0.0114119]
[1766673970260,0.02591552,87687.0,87679.0,0.0114119]
[1766673970474,0.02591552,87686.0,87679.0,0.0114119]
[1766673970673,0.0114102,87693.0,87679.0,0.0114119]
[1766673970875,0.02591564,87692.0,87679.0,0.0114119]
[1766673971073,0.02591564,87691.0,87679.0,0.0114119]
[1766673971274,0.02591564,87690.0,87679.0,0.0114119]
[1766673971467,0.02591564,87689.0,87679.0,0.0114119]
[1766673971666,0.02591564,87688.0,87679.0,0.0114119]
[1766673971872,0.02591564,87687.0,87679.0,0.0114119]
[1766673972072,0.09818332,87697.0,87681.0,0.0114117]
[1766673972073,0.0114099,87696.0,87681.0,0.0114117]
[1766673976678,0.0114099,87696.0,87683.0,0.0114115]
[1766673977686,0.0114099,87696.0,87672.0,0.0114129]
[1766673977687,0.0114091,87702.0,87687.0,0.0114109]
[1766673977873,0.05712,87702.0,87690.0,0.0114106]
[1766673978572,0.05712,87702.0,87687.0,0.0114109]
[1766673979079,0.0114092,87701.0,87687.0,0.0114109]
[1766673981380,0.0114092,87701.0,87686.0,0.00017106]
[1766673982079,0.0114092,87701.0,87686.0,0.01158216]
[1766673983877,0.05712,87702.0,87686.0,0.01158216]
[1766673983878,0.05712,87702.0,87686.0,0.00017106]
[1766673984074,0.02578107,87701.0,87686.0,0.00017106]
[1766673984279,0.05712,87704.0,87686.0,0.00017106]
[1766673984579,0.0257781,87703.0,87686.0,0.00017106]
[1766673984779,0.0257781,87702.0,87686.0,0.00017106]
[1766673985077,0.05712,87704.0,87686.0,0.00017106]
[1766673985278,0.02577782,87703.0,87686.0,0.00017106]
[1766673985579,0.02577782,87702.0,87686.0,0.00017106]
[1766673985780,0.05712,87704.0,87691.0,0.0114104]
[1766673986080,0.02577462,87703.0,87691.0,0.0114104]
[1766673986276,0.05712,87704.0,87691.0,0.0114104]
[1766673986581,0.02577344,87703.0,87691.0,0.0114104]
[1766673986773,0.05712,87704.0,87691.0,0.0114104]
[1766673987080,0.02577341,87703.0,87691.0,0.0114104]
[1766673987279,0.0685289,87704.0,87691.0,0.0114104]
[1766673987482,0.0685289,87704.0,87688.0,0.0114108]
[1766673987483,0.02577128,87703.0,87688.0,0.0114108]
[1766673987681,0.03718038,87702.0,87688.0,0.0114108]
[1766673987881,0.0114091,87702.0,87688.0,0.0114108]
[1766673988084,0.0114091,87702.0,87686.0,0.00017106]
[1766673988786,0.0114091,87702.0,87687.0,0.0114109]
[1766673993891,0.0114087,87705.0,87689.0,0.0114106]
[1766673994076,0.02572858,87704.0,87689.0,0.0114106]
[1766673994391,0.02572858,87703.0,87689.0,0.0114106]
[1766673994582,0.02572858,87702.0,87689.0,0.0114106]
[1766673994782,0.02572858,87701.0,87689.0,0.0114106]
[1766673994982,0.0114087,87705.0,87689.0,0.0114106]
[1766673995177,0.0257285,87704.0,87689.0,0.0114106]
[1766673995384,0.0257285,87703.0,87689.0,0.0114106]
[1766673995683,0.0257285,87702.0,87689.0,0.0114106]
[1766673995884,0.0114087,87705.0,87689.0,0.0114106]
[1766673996083,0.02572883,87704.0,87689.0,0.0114106]
[1766673996387,0.02572883,87703.0,87689.0,0.0114106]
[1766673996696,0.02572883,87702.0,87689.0,0.0114106]
[1766673996884,0.0114087,87705.0,87689.0,0.0114106]
[1766673997085,0.02572918,87704.0,87689.0,0.0114106]
[1766673997281,0.02572918,87703.0,87689.0,0.0114106]
[1766673997590,0.02572918,87702.0,87689.0,0.0114106]
[1766673997791,0.0114087,87705.0,87689.0,0.0114106]
[1766673998090,0.02573002,87704.0,87689.0,0.0114106]
[1766673998285,0.02573002,87703.0,87689.0,0.0114106]
[1766673998485,0.02573002,87702.0,87689.0,0.0114106]
[1766673998686,0.0114087,87705.0,87689.0,0.0114106]
[1766673998889,0.0257314,87704.0,87689.0,0.0114106]
[1766673999090,0.0257314,87703.0,87689.0,0.0114106]
[1766673999291,0.0257314,87702.0,87689.0,0.0114106]
[1766673999590,0.0114087,87705.0,87689.0,0.0114106]
[1766673999790,0.02573253,87704.0,87689.0,0.0114106]
[1766674000092,0.02573253,87703.0,87689.0,0.0114106]
[1766674000292,0.02573253,87702.0,87689.0,0.0114106]
[1766674000494,0.0114087,87705.0,87691.0,0.0114104]
[1766674000694,0.02573433,87704.0,87691.0,0.0114104]
[1766674000995,0.02573433,87703.0,87691.0,0.0114104]
[1766674001294,0.02573433,87702.0,87691.0,0.0114104]
[1766674001495,0.0114087,87705.0,87691.0,0.0114104]
[1766674001496,0.02573433,87701.0,87691.0,0.0114104]
[1766674001697,0.0114087,87705.0,87691.0,0.0114104]
[1766674001896,0.02573644,87704.0,87691.0,0.0114104]
[1766674002095,0.02573644,87703.0,87691.0,0.0114104]
[1766674002297,0.02573644,87702.0,87691.0,0.0114104]
[1766674002498,0.02573644,87701.0,87691.0,0.0114104]
[1766674002698,0.0114087,87705.0,87691.0,0.0114104]
[1766674002898,0.02573611,87704.0,87691.0,0.0114104]
[1766674003090,0.02573611,87703.0,87691.0,0.0114104]
[1766674003291,0.0114087,87705.0,87691.0,0.0114104]
[1766674003292,0.02573611,87702.0,87691.0,0.0114104]
[1766674003491,0.02573611,87701.0,87691.0,0.0114104]
[1766674003691,0.0114087,87705.0,87691.0,0.0114104]
[1766674003891,0.02573482,87704.0,87691.0,0.0114104]
[1766674004093,0.02573482,87703.0,87691.0,0.0114104]
[1766674004390,0.02573482,87702.0,87691.0,0.0114104]
[1766674004598,0.02573482,87701.0,87691.0,0.0114104]
[1766674004799,0.0114087,87705.0,87691.0,0.0114104]
[1766674004994,0.02573744,87704.0,87691.0,0.0114104]
[1766674005194,0.02573744,87703.0,87691.0,0.0114104]
[1766674005393,0.02573744,87702.0,87691.0,0.0114104]
[1766674005594,0.02573744,87701.0,87691.0,0.0114104]
[1766674005793,0.02573744,87700.0,87691.0,0.0114104]
[1766674005995,0.0114087,87705.0,87691.0,0.0114104]
[1766674006195,0.02574081,87704.0,87691.0,0.0114104]
[1766674006397,0.02574081,87703.0,87691.0,0.0114104]
[1766674006700,0.02574081,87702.0,87691.0,0.0114104]
[1766674006885,0.02574081,87701.0,87691.0,0.0114104]
[1766674007085,0.02574081,87700.0,87691.0,0.0114104]
[1766674007300,0.0114087,87705.0,87691.0,0.0114104]
[1766674007301,0.02574081,87699.0,87691.0,0.0114104]
[1766674007600,0.0114087,87705.0,87691.0,0.0114104]
[1766674007801,0.02575011,87704.0,87691.0,0.0114104]
[1766674008003,0.02575011,87703.0,87691.0,0.0114104]
[1766674008197,0.02575011,87702.0,87691.0,0.0114104]
[1766674008398,0.02575011,87701.0,87691.0,0.0114104]
[1766674008702,0.02575011,87700.0,87691.0,0.0114104]
[1766674008901,0.02575011,87699.0,87691.0,0.0114104]
[1766674009102,0.02575011,87698.0,87691.0,0.0114104]
[1766674009305,0.0114087,87705.0,87691.0,0.0114104]
[1766674009504,0.02575207,87704.0,87691.0,0.0114104]
[1766674009696,0.02575207,87703.0,87691.0,0.0114104]
[1766674009897,0.02575207,87702.0,87691.0,0.0114104]
[1766674010097,0.02575207,87701.0,87691.0,0.0114104]
[1766674010304,0.02575207,87700.0,87691.0,0.0114104]
[1766674010506,0.02575207,87699.0,87691.0,0.0114104]
[1766674010705,0.02575207,87698.0,87691.0,0.0114104]
[1766674010906,0.0114087,87705.0,87691.0,0.0114104]
[1766674011106,0.02575343,87704.0,87691.0,0.0114104]
[1766674011315,0.02575343,87703.0,87691.0,0.0114104]
[1766674011497,0.02575343,87702.0,87691.0,0.0114104]
[1766674011706,0.02575343,87701.0,87691.0,0.0114104]
[1766674011906,0.02575343,87700.0,87691.0,0.0114104]
[1766674012104,0.02575343,87699.0,87691.0,0.0114104]
[1766674012309,0.02575343,87698.0,87691.0,0.0114104]
[1766674012504,0.0114087,87705.0,87691.0,0.0114104]
[1766674012705,0.02575767,87704.0,87691.0,0.0114104]
[1766674012906,0.02575767,87703.0,87691.0,0.0114104]
[1766674013106,0.02575767,87702.0,87691.0,0.0114104]
[1766674013308,0.02575767,87701.0,87691.0,0.0114104]
[1766674013509,0.02575767,87700.0,87691.0,0.0114104]
[1766674013808,0.02575767,87699.0,87691.0,0.0114104]
[1766674013998,0.02575767,87698.0,87691.0,0.0114104]
[1766674014200,0.02575767,87697.0,87691.0,0.0114104]
[1766674014512,0.0114087,87705.0,87691.0,0.0114104]
[1766674014708,0.02576315,87704.0,87691.0,0.0114104]
[1766674014910,0.02576315,87703.0,87691.0,0.0114104]
[1766674015110,0.02576315,87702.0,87691.0,0.0114104]
[1766674015310,0.02576315,87701.0,87691.0,0.0114104]
[1766674015512,0.02576315,87700.0,87691.0,0.0114104]
[1766674015708,0.02576315,87699.0,87691.0,0.0114104]
[1766674016011,0.02576315,87698.0,87691.0,0.0114104]
[1766674016201,0.0114087,87705.0,87691.0,0.0114104]
[1766674016398,0.02576316,87704.0,87691.0,0.0114104]
[1766674016605,0.02576316,87703.0,87691.0,0.0114104]
[1766674016805,0.02576316,87702.0,87688.0,0.0114108]
[1766674017010,0.02576316,87701.0,87688.0,0.0114108]
[1766674017200,0.0114089,87703.0,87688.0,0.0114108]
[1766674017201,0.02576316,87700.0,87688.0,0.0114108]
[1766674017398,0.02576316,87699.0,87688.0,0.0114108]
[1766674017597,0.02576316,87698.0,87688.0,0.0114108]
[1766674017802,0.0114089,87703.0,87688.0,0.0114108]
[1766674017998,0.02576306,87702.0,87688.0,0.0114108]
[1766674018199,0.02576306,87701.0,87688.0,0.0114108]
[1766674018403,0.02576306,87700.0,87686.0,0.00017106]
[1766674018612,0.02576306,87699.0,87686.0,0.01158216]
[1766674018813,0.02576306,87698.0,87686.0,0.01158216]
[1766674019114,0.011409,87703.0,87686.0,0.01158216]
[1766674019315,0.02582202,87702.0,87686.0,0.01158216]
[1766674019616,0.02582202,87701.0,87686.0,0.01158216]
[1766674019808,0.02582202,87700.0,87688.0,0.0114108]
[1766674020007,0.02582202,87699.0,87688.0,0.0114108]
[1766674020211,0.02582202,87698.0,87688.0,0.0114108]
[1766674020511,0.011409,87703.0,87688.0,0.0114108]
[1766674020712,0.02582126,87702.0,87688.0,0.0114108]
[1766674020910,0.011409,87703.0,87688.0,0.0114108]
[1766674021109,0.02582115,87702.0,87688.0,0.0114108]
[1766674021309,0.02582115,87701.0,87688.0,0.0114108]
[1766674021514,0.02582115,87700.0,87688.0,0.0114108]
[1766674021721,0.02582115,87699.0,87688.0,0.0114108]
[1766674022014,0.02582115,87698.0,87688.0,0.0114108]
[1766674022215,0.011409,87703.0,87688.0,0.0114108]
[1766674022415,0.02582096,87702.0,87688.0,0.0114108]
[1766674022613,0.02582096,87701.0,87688.0,0.0114108]
[1766674022809,0.02582096,87700.0,87688.0,0.0114108]
[1766674023108,0.02582096,87699.0,87688.0,0.0114108]
[1766674023309,0.02582096,87698.0,87688.0,0.0114108]
[1766674023509,0.011409,87703.0,87688.0,0.0114108]
[1766674023710,0.02582089,87702.0,87688.0,0.0114108]
[1766674024015,0.02582089,87701.0,87690.0,0.0114106]
[1766674024217,0.02582089,87700.0,87690.0,0.0114106]
[1766674024418,0.02582089,87699.0,87690.0,0.0114106]
[1766674024722,0.02582089,87698.0,87690.0,0.0114106]
[1766674024921,0.011409,87703.0,87690.0,0.0114106]
[1766674025220,0.02582088,87702.0,87690.0,0.0114106]
[1766674025421,0.02582088,87701.0,87690.0,0.0114106]
[1766674025719,0.02582088,87700.0,87690.0,0.0114106]
[1766674025909,0.02582088,87699.0,87690.0,0.0114106]
[1766674026110,0.02582088,87698.0,87690.0,0.0114106]
[1766674026309,0.011409,87703.0,87690.0,0.0114106]
[1766674026504,0.02582052,87702.0,87690.0,0.0114106]
[1766674026710,0.02582052,87701.0,87690.0,0.0114106]
[1766674026911,0.02582052,87700.0,87690.0,0.0114106]
[1766674027208,0.02582052,87699.0,87690.0,0.0114106]
[1766674027411,0.02582052,87698.0,87690.0,0.0114106]
[1766674027610,0.011409,87703.0,87690.0,0.0114106]
[1766674027813,0.02582051,87702.0,87690.0,0.0114106]
[1766674028014,0.02582051,87701.0,87690.0,0.0114106]
[1766674028220,0.02582051,87700.0,87690.0,0.0114106]
[1766674028518,0.02582051,87699.0,87690.0,0.0114106]
[1766674028718,0.02582051,87698.0,87690.0,0.0114106]
[1766674028920,0.011409,87703.0,87690.0,0.0114106]
[1766674029219,0.02582048,87702.0,87690.0,0.0114106]
[1766674029516,0.02582048,87701.0,87690.0,0.0114106]
[1766674029719,0.02582048,87700.0,87690.0,0.0114106]
[1766674029924,0.02582048,87699.0,87690.0,0.0114106]
[1766674030219,0.02582048,87698.0,87690.0,0.0114106]
[1766674030422,0.011409,87703.0,87690.0,0.0114106]
[1766674030606,0.02582041,87702.0,87690.0,0.0114106]
[1766674030809,0.02582041,87701.0,87690.0,0.0114106]
[1766674031007,0.02582041,87700.0,87690.0,0.0114106]
[1766674031220,0.02582041,87699.0,87690.0,0.0114106]
[1766674031420,0.02582041,87698.0,87690.0,0.0114106]
[1766674031622,0.011409,87703.0,87690.0,0.0114106]
[1766674031812,0.02582049,87702.0,87690.0,0.0114106]
[1766674032113,0.02582049,87701.0,87690.0,0.0114106]
[1766674032315,0.02582049,87700.0,87687.0,0.0114109]
[1766674032514,0.02582049,87699.0,87687.0,0.0114109]
[1766674032715,0.02582049,87698.0,87687.0,0.0114109]
[1766674032923,0.011409,87703.0,87687.0,0.0114109]
[1766674033125,0.02582053,87702.0,87687.0,0.0114109]
[1766674033421,0.02582053,87701.0,87687.0,0.0114109]
[1766674033622,0.02582053,87700.0,87687.0,0.0114109]
[1766674033822,0.02582053,87699.0,87687.0,0.0114109]
[1766674034021,0.02582053,87698.0,87687.0,0.0114109]
[1766674034208,0.011409,87703.0,87687.0,0.0114109]
[1766674034410,0.02582061,87702.0,87687.0,0.0114109]
[1766674034624,0.02582061,87701.0,87687.0,0.0114109]
[1766674034821,0.02582061,87700.0,87687.0,0.0114109]
[1766674035023,0.02582061,87699.0,87687.0,0.0114109]
[1766674035321,0.02582061,87698.0,87687.0,0.0114109]
[1766674035520,0.011409,87703.0,87687.0,0.0114109]
[1766674035720,0.02582066,87702.0,87687.0,0.0114109]
[1766674035925,0.02582066,87701.0,87687.0,0.0114109]
[1766674036118,0.02582066,87700.0,87687.0,0.0114109]
[1766674036415,0.02582066,87699.0,87687.0,0.0114109]
[1766674036616,0.02582066,87698.0,87687.0,0.0114109]
[1766674036817,0.011409,87703.0,87687.0,0.0114109]
[1766674037116,0.02582082,87702.0,87687.0,0.0114109]
[1766674037317,0.02582082,87701.0,87687.0,0.0114109]
[1766674037518,0.02582082,87700.0,87687.0,0.0114109]
[1766674037818,0.02582082,87699.0,87687.0,0.0114109]
[1766674038116,0.02582082,87698.0,87687.0,0.0114109]
[1766674038317,0.011409,87703.0,87687.0,0.0114109]
[1766674038618,0.02582116,87702.0,87687.0,0.0114109]
[1766674038818,0.02582116,87701.0,87689.0,0.0114107]
[1766674039019,0.02582116,87700.0,87689.0,0.0114107]
[1766674039219,0.02582116,87699.0,87689.0,0.0114107]
[1766674039422,0.02582116,87698.0,87689.0,0.0114107]
[1766674039722,0.011409,87703.0,87689.0,0.0114107]
[1766674039923,0.02582112,87702.0,87689.0,0.0114107]
[1766674040124,0.02582112,87701.0,87689.0,0.0114107]
[1766674040327,0.02582112,87700.0,87689.0,0.0114107]
[1766674040511,0.02582112,87699.0,87689.0,0.0114107]
[1766674040815,0.02582112,87698.0,87689.0,0.0114107]
[1766674041015,0.011409,87703.0,87689.0,0.0114107]
[1766674041225,0.02582119,87702.0,87689.0,0.0114107]
[1766674041525,0.02582119,87701.0,87689.0,0.0114107]
[1766674041823,0.02582119,87700.0,87689.0,0.0114107]
[1766674042026,0.02582119,87699.0,87689.0,0.0114107]
[1766674042221,0.02582119,87698.0,87689.0,0.0114107]
[1766674042421,0.011409,87703.0,87689.0,0.0114107]
[1766674042621,0.02582139,87702.0,87689.0,0.0114107]
[1766674042822,0.011409,87703.0,87689.0,0.0114107]
[1766674042823,0.02582139,87701.0,87689.0,0.0114107]
[1766674043024,0.02582139,87700.0,87689.0,0.0114107]
[1766674043324,0.02582139,87699.0,87689.0,0.0114107]
[1766674043523,0.011409,87703.0,87689.0,0.0114107]
[1766674043524,0.02582139,87698.0,87689.0,0.0114107]
[1766674043724,0.011409,87703.0,87689.0,0.0114107]
[1766674043924,0.02582142,87702.0,87689.0,0.0114107]
[1766674044123,0.02582142,87701.0,87691.0,0.0114104]
[1766674044324,0.02582142,87700.0,87691.0,0.0114104]
[1766674044525,0.02582142,87699.0,87691.0,0.0114104]
[1766674044715,0.02582142,87698.0,87691.0,0.0114104]
[1766674044919,0.0228486,87706.0,87691.0,0.0114104]
[1766674045134,0.02582145,87705.0,87691.0,0.0114104]
[1766674045332,0.02582145,87704.0,87691.0,0.0114104]
[1766674045532,0.02582145,87703.0,87691.0,0.0114104]
[1766674045831,0.02582145,87702.0,87691.0,0.0114104]
[1766674046031,0.02582145,87701.0,87691.0,0.0114104]
[1766674046332,0.02582145,87700.0,87691.0,0.0114104]
[1766674046626,0.0114088,87704.0,87691.0,0.0114104]
[1766674046627,0.02582145,87699.0,87691.0,0.0114104]
[1766674046830,0.02582145,87698.0,87691.0,0.0114104]
[1766674047030,0.02582145,87697.0,87691.0,0.0114104]
[1766674047231,0.0114088,87704.0,87691.0,0.0114104]
[1766674047531,0.02582189,87703.0,87691.0,0.0114104]
[1766674047834,0.02582189,87702.0,87691.0,0.0114104]
[1766674048132,0.02582189,87701.0,87691.0,0.0114104]
[1766674048331,0.02582189,87700.0,87691.0,0.0114104]
[1766674048531,0.02582189,87699.0,87691.0,0.0114104]
[1766674048731,0.02582189,87698.0,87691.0,0.0114104]
[1766674048932,0.02582189,87697.0,87691.0,0.0114104]
[1766674049127,0.0114088,87704.0,87691.0,0.0114104]
[1766674049329,0.0258144,87703.0,87691.0,0.0114104]
[1766674049531,0.0258144,87702.0,87691.0,0.0114104]
[1766674049733,0.0258144,87701.0,87691.0,0.0114104]
[1766674050034,0.0258144,87700.0,87691.0,0.0114104]
[1766674050234,0.0258144,87699.0,87691.0,0.0114104]
[1766674050436,0.0258144,87698.0,87691.0,0.0114104]
[1766674050627,0.0258144,87697.0,87691.0,0.0114104]
[1766674050828,0.0114088,87704.0,87691.0,0.0114104]
[1766674051028,0.02581503,87703.0,87691.0,0.0114104]
[1766674051237,0.02581503,87702.0,87691.0,0.0114104]
[1766674051441,0.02581503,87701.0,87691.0,0.0114104]
[1766674051742,0.02581503,87700.0,87691.0,0.0114104]
[1766674052034,0.02581503,87699.0,87691.0,0.0114104]
[1766674052236,0.02581503,87698.0,87691.0,0.0114104]
[1766674052433,0.02581503,87697.0,87691.0,0.0114104]
[1766674052733,0.0114088,87704.0,87691.0,0.0114104]
[1766674052935,0.02581711,87703.0,87691.0,0.0114104]
[1766674053134,0.02581711,87702.0,87691.0,0.0114104]
[1766674053334,0.02581711,87701.0,87691.0,0.0114104]
[1766674053538,0.02581711,87700.0,87691.0,0.0114104]
[1766674053734,0.02581711,87699.0,87691.0,0.0114104]
[1766674053935,0.02581711,87698.0,87691.0,0.0114104]
[1766674054137,0.02581711,87697.0,87691.0,0.0114104]
[1766674054335,0.0114088,87704.0,87691.0,0.0114104]
[1766674054536,0.02581798,87703.0,87691.0,0.0114104]
[1766674054735,0.02581798,87702.0,87691.0,0.0114104]
[1766674054937,0.02581798,87701.0,87691.0,0.0114104]
[1766674055138,0.02581798,87700.0,87691.0,0.0114104]
[1766674055339,0.02581798,87699.0,87691.0,0.0114104]
[1766674055542,0.02581798,87698.0,87691.0,0.0114104]
[1766674055743,0.0114088,87704.0,87691.0,0.0114104]
[1766674055944,0.02582043,87703.0,87691.0,0.0114104]
[1766674056143,0.02582043,87702.0,87691.0,0.0114104]
[1766674056443,0.02582043,87701.0,87688.0,0.0114108]
[1766674056646,0.02582043,87700.0,87688.0,0.0114108]
[1766674056838,0.02582043,87699.0,87688.0,0.0114108]
[1766674057037,0.02582043,87698.0,87688.0,0.0114108]
[1766674057237,0.0114091,87702.0,87688.0,0.0114108]
[1766674057538,0.02582049,87701.0,87688.0,0.0114108]
[1766674057838,0.02582049,87700.0,87688.0,0.0114108]
[1766674058138,0.02582049,87699.0,87688.0,0.0114108]
[1766674058337,0.02582049,87698.0,87688.0,0.0114108]
[1766674058538,0.0114091,87702.0,87688.0,0.0114108]
[1766674058738,0.0258206,87701.0,87688.0,0.0114108]
[1766674058938,0.0258206,87700.0,87688.0,0.0114108]
[1766674059138,0.0258206,87699.0,87688.0,0.0114108]
[1766674059345,0.0258206,87698.0,87688.0,0.0114108]
[1766674059546,0.0114088,87705.0,87690.0,0.0114106]
[1766674059747,0.02582059,87704.0,87690.0,0.0114106]
[1766674059939,0.02582059,87703.0,87690.0,0.0114106]
[1766674060134,0.02582059,87702.0,87690.0,0.0114106]
[1766674060445,0.02582059,87701.0,87690.0,0.0114106]
[1766674060649,0.02582059,87700.0,87690.0,0.0114106]
[1766674060847,0.02582059,87699.0,87690.0,0.0114106]
[1766674061042,0.02582059,87698.0,87690.0,0.0114106]
[1766674061243,0.0114088,87705.0,87690.0,0.0114106]
[1766674061446,0.0258206,87704.0,87690.0,0.0114106]
[1766674061746,0.0258206,87703.0,87690.0,0.0114106]
[1766674061939,0.0258206,87702.0,87690.0,0.0114106]
[1766674062139,0.0258206,87701.0,87690.0,0.0114106]
[1766674062335,0.0258206,87700.0,87690.0,0.0114106]
[1766674062541,0.0258206,87699.0,87690.0,0.0114106]
[1766674062741,0.0258206,87698.0,87690.0,0.0114106]
[1766674062942,0.0114088,87705.0,87690.0,0.0114106]
[1766674063140,0.02582059,87704.0,87690.0,0.0114106]
[1766674063339,0.02582059,87703.0,87690.0,0.0114106]
[1766674063544,0.02582059,87702.0,87690.0,0.0114106]
[1766674063741,0.02582059,87701.0,87690.0,0.0114106]
[1766674063953,0.02582059,87700.0,87690.0,0.0114106]
[1766674064154,0.02582059,87699.0,87690.0,0.0114106]
[1766674064347,0.02582059,87698.0,87690.0,0.0114106]
[1766674064550,0.0114088,87705.0,87690.0,0.0114106]
[1766674064848,0.02582067,87704.0,87690.0,0.0114106]
[1766674065047,0.02582067,87703.0,87690.0,0.0114106]
[1766674065254,0.02582067,87702.0,87690.0,0.0114106]
[1766674065449,0.02582067,87701.0,87690.0,0.0114106]
[1766674065654,0.02582067,87700.0,87690.0,0.0114106]
[1766674065953,0.02582067,87699.0,87690.0,0.0114106]
[1766674066153,0.02582067,87698.0,87690.0,0.0114106]
[1766674066356,0.0114088,87705.0,87690.0,0.0114106]
[1766674066655,0.02582067,87704.0,87690.0,0.0114106]
[1766674066953,0.02582067,87703.0,87690.0,0.0114106]
[1766674067154,0.0114088,87705.0,87690.0,0.0114106]
[1766674067155,0.02582067,87702.0,87690.0,0.0114106]
[1766674067353,0.02582067,87701.0,87690.0,0.0114106]
[1766674067655,0.02582067,87700.0,87690.0,0.0114106]
[1766674067955,0.02582067,87699.0,87690.0,0.0114106]
[1766674068156,0.02582067,87698.0,87690.0,0.0114106]
[1766674068356,0.0114088,87705.0,87690.0,0.0114106]
[1766674068559,0.02580707,87704.0,87690.0,0.0114106]
[1766674068751,0.02580707,87703.0,87690.0,0.0114106]
[1766674069050,0.02580707,87702.0,87690.0,0.0114106]
[1766674069359,0.02580707,87701.0,87690.0,0.0114106]
[1766674069656,0.02580707,87700.0,87690.0,0.0114106]
[1766674069956,0.02580707,87699.0,87690.0,0.0114106]
[1766674070158,0.02580707,87698.0,87690.0,0.0114106]
[1766674070359,0.0114088,87705.0,87692.0,0.0114103]
[1766674070558,0.02580709,87704.0,87692.0,0.0114103]
[1766674070760,0.02580709,87703.0,87692.0,0.0114103]
[1766674071058,0.02580709,87702.0,87692.0,0.0114103]
[1766674071251,0.02580709,87701.0,87692.0,0.0114103]
[1766674071452,0.02580709,87700.0,87692.0,0.0114103]
[1766674071652,0.02580709,87699.0,87692.0,0.0114103]
[1766674071862,0.02580709,87698.0,87692.0,0.0114103]
[1766674072063,0.01144,87706.0,87692.0,0.0114103]
[1766674072262,0.02580709,87705.0,87692.0,0.0114103]
[1766674072462,0.02580709,87704.0,87692.0,0.0114103]
[1766674072663,0.01144,87706.0,87686.0,0.00017106]
[1766674072664,0.02580709,87703.0,87694.0,0.0114101]
[1766674072863,0.02580709,87702.0,87694.0,0.0114101]
[1766674073070,0.02580709,87701.0,87694.0,0.0114101]
[1766674073272,0.02580709,87700.0,87694.0,0.0114101]
[1766674073461,0.01144,87706.0,87694.0,0.0114101]
[1766674073462,0.02580709,87699.0,87694.0,0.0114101]